[Event "Ceske Budejovice Open-A 2019"]
[Site "Ceske Budejovice"]
[Date "2019.07.05"]
[Round "7.10"]
[White "Placer, Sebastian"]
[Black "Glimbrant, Torbjorn"]
[Result "1-0"]
[ECO "D28"]
[WhiteElo "2040"]
[BlackElo "2195"]
[Annotator "NA"]
[PlyCount "119"]
[EventDate "2019.07.02"]
[EventCountry "CZE"]
[SourceTitle "playchess.com"]
[Source "ChessBase"]
[SourceQuality "1"]
[TimeControl "5400+30"]

1. d4 {[%emt 0:00:00]} d5 {[%emt 0:02:54]} 2. Nf3 {[%emt 0:00:00]} Nf6 {[%emt 0:00:30]} 3. c4 {[%emt 0:00:05]} dxc4 {[%emt 0:00:30]} 4. e3 {[%emt 0:00:05]} e6 {[%emt 0:00:18]} 5. Bxc4 {[%emt 0:00:08]} c5 {[%emt 0:00:12]} 6. O-O {[%emt 0:00:12]} a6 {[%emt 0:00:36]} 7. Qe2 {[%emt 0:00:27]} Nc6 {[%emt 0:01:56]} 8. Rd1 {[%emt 0:00:27]} Qc7 {[%emt 0:01:35]} 9. Bb3 {[%emt 0:01:09]} b5 {[%emt 0:06:19]} 10. h3 {[%emt 0:00:38]} Bb7 {[%emt 0:01:15]} 11. Nbd2 {[%emt 0:01:09]} cxd4 {[%emt 0:05:02]} 12. Nxd4 {[%emt 0:00:52]} Nxd4 {[%emt 0:17:22]} 13. exd4 {[%emt 0:00:33]} Be7 {[%emt 0:00:11]} 14. Nf3 {[%emt 0:00:34]} O-O {[%emt 0:00:44]} 15. Bg5 {[%emt 0:01:04]} Nd5 {[%emt 0:02:13]} 16. Rac1 {[%emt 0:05:20]} Qd8 {[%emt 0:01:26]} 17. Be3 {[%emt 0:00:30]} Qd6 {[%emt 0:04:18]} 18. Ne5 {[%emt 0:03:54]} Rac8 {[%emt 0:12:45]} 19. Nd3 {[%emt 0:10:24]} Nxe3 {[%emt 0:05:05]} 20. fxe3 {[%emt 0:03:15]} Bd5 {[%emt 0:01:01]} 21. Nc5 {[%emt 0:05:51]} Bxb3 {[%emt 0:12:54]} 22. Nxb3 {[%emt 0:00:14]} Qg3 {[%emt 0:01:55]} 23. Qf2 {[%emt 0:08:44]} Qb8 {[%emt 0:01:05]} 24. Qf3 {[%emt 0:07:47]} Qb6 {[%emt 0:05:31]} 25. Kh1 {[%emt 0:06:21]} a5 {[%emt 0:05:42]} 26. Nd2 {[%emt 0:03:51]} a4 {[%emt 0:01:05]} 27. Ne4 {[%emt 0:00:56]} a3 {[%emt 0:02:07]} 28. b3 {[%emt 0:03:40]} f5 {[%emt 0:00:18]} 29. Nc3 {[%emt 0:02:10]} Bb4 {[%emt 0:01:37]} 30. Ne2 {[%emt 0:01:05]} g6 {[%emt 0:01:09]} 31. Nf4 {[%emt 0:01:50]} g5 {[%emt 0:04:14]} 32. Nd3 {[%emt 0:03:25]} Bd6 {[%emt 0:00:17]} 33. Qh5 {[%emt 0:02:03]} Rxc1 {[%emt 0:01:09]} 34. Qxg5+ {[%emt 0:00:43]} Kh8 {[%emt 0:00:40]} 35. Rxc1 {[%emt 0:00:40]} Qb7 {[%emt 0:00:49]} 36. Nf4 {[%emt 0:11:57]} Qf7 {[%emt 0:00:15]} 37. Qh6 {[%emt 0:05:17]} Bxf4 {[%emt 0:00:39]} 38. Qxf4 {[%emt 0:00:07]} Qf6 {[%emt 0:00:45]} 39. Rc5 {[%emt 0:00:46]} b4 {[%emt 0:00:09]} 40. Rc4 {[%emt 0:00:52]} Re8 {[%emt 0:00:53]} 41. Rxb4 {[%emt 0:03:16]} h5 {[%emt 0:00:00]} 42. Rb8 {[%emt 0:00:00]} Rxb8 {[%emt 0:00:00]} 43. Qxb8+ {[%emt 0:00:00]} Kh7 {[%emt 0:00:00]} 44. Qa7+ {[%emt 0:00:00]} Kg6 {[%emt 0:00:00]} 45. Qxa3 {[%emt 0:00:00]} Qh4 {[%emt 0:00:00]} 46. Qd6 {[%emt 0:00:00]} Qe1+ {[%emt 0:00:00]} 47. Kh2 {[%emt 0:00:00]} Kf7 {[%emt 0:00:00]} 48. d5 {[%emt 0:00:00]} exd5 {[%emt 0:00:00]} 49. Qxd5+ {[%emt 0:00:00]} Kg6 {[%emt 0:00:00]} 50. Qe5 {[%emt 0:00:00]} Qb1 {[%emt 0:00:00]} 51. Qe6+ {[%emt 0:00:00]} Kg7 {[%emt 0:00:00]} 52. a4 {[%emt 0:00:00]} Qc2 {[%emt 0:00:00]} 53. Qc4 {[%emt 0:00:00]} Qa2 {[%emt 0:00:00]} 54. Qc3+ {[%emt 0:00:00]} Kg6 {[%emt 0:00:00]} 55. a5 {[%emt 0:00:00]} h4 {[%emt 0:00:00]} 56. b4 {[%emt 0:00:00]} Qf2 {[%emt 0:00:00]} 57. Qe5 {[%emt 0:00:00]} Qe1 {[%emt 0:00:00]} 58. a6 {[%emt 0:00:00]} Qxb4 {[%emt 0:00:44]} 59. a7 {[%emt 0:00:00]} Qa3 {[%emt 0:01:15]} 60. Qb8 {[%emt 0:00:00]} 1-0

[Event "Ceske Budejovice Open-A 2019"]
[Site "Ceske Budejovice"]
[Date "2019.07.05"]
[Round "7.11"]
[White "Vahala, Tomas"]
[Black "Steiner, Bruno"]
[Result "1/2-1/2"]
[ECO "D02"]
[WhiteElo "1774"]
[BlackElo "2179"]
[Annotator "NA"]
[PlyCount "55"]
[EventDate "2019.07.02"]
[EventCountry "CZE"]
[SourceTitle "playchess.com"]
[Source "ChessBase"]
[SourceQuality "1"]
[TimeControl "5400+30"]

1. d4 {[%emt 0:00:00]} d5 {[%emt 0:00:37]} 2. Nf3 {[%emt 0:00:00]} e6 {[%emt 0:01:30]} 3. c4 {[%emt 0:00:28]} c6 {[%emt 0:00:34]} 4. e3 {[%emt 0:02:36]} Nf6 {[%emt 0:00:09]} 5. Bd3 {[%emt 0:04:06]} Nbd7 {[%emt 0:02:35]} 6. O-O {[%emt 0:01:16]} b6 {[%emt 0:06:05]} 7. b3 {[%emt 0:01:28]} Bb7 {[%emt 0:03:36]} 8. Bb2 {[%emt 0:00:31]} Ne4 {[%emt 0:04:16]} 9. cxd5 {[%emt 0:04:10]} exd5 {[%emt 0:03:03]} 10. Nbd2 {[%emt 0:01:39]} Ndf6 {[%emt 0:04:25]} 11. Ne5 {[%emt 0:09:06]} Bd6 {[%emt 0:06:35]} 12. f3 {[%emt 0:09:25]} Nxd2 {[%emt 0:05:45]} 13. Qxd2 {[%emt 0:00:01]} O-O {[%emt 0:00:37]} 14. Rac1 {[%emt 0:05:08]} Rc8 {[%emt 0:04:54]} 15. Qe2 {[%emt 0:04:36]} Re8 {[%emt 0:05:56]} 16. f4 {[%emt 0:08:42]} Re7 {[%emt 0:05:42]} 17. Bf5 {[%emt 0:03:35]} Rcc7 {[%emt 0:01:31]} 18. Rf3 {[%emt 0:01:36]} g6 {[%emt 0:04:34]} 19. Rg3 {[%emt 0:04:28]} Bxe5 {[%emt 0:04:19]} 20. dxe5 {[%emt 0:01:04]} Ne4 {[%emt 0:00:32]} 21. Bxe4 {[%emt 0:01:08]} dxe4 {[%emt 0:00:04]} 22. f5 {[%emt 0:00:28]} Rcd7 {[%emt 0:13:44]} 23. Qh5 {[%emt 0:05:41]} Rd5 {[%emt 0:03:51]} 24. Rf1 {[%emt 0:09:32]} Rexe5 {[%emt 0:08:03]} 25. Bxe5 {[%emt 0:00:53]} Rxe5 {[%emt 0:00:14]} 26. Qh6 {[%emt 0:01:35]} Ba6 {[%emt 0:04:19]} 27. fxg6 {[%emt 0:01:27]} fxg6 {[%emt 0:02:54]} 28. Rxg6+ {[%emt 0:05:18]} 1/2-1/2

[Event "Ceske Budejovice Open-A 2019"]
[Site "Ceske Budejovice"]
[Date "2019.07.05"]
[Round "7.12"]
[White "Mulenko, Alexander"]
[Black "Nezval, Filip"]
[Result "1-0"]
[ECO "A13"]
[WhiteElo "2055"]
[BlackElo "1860"]
[Annotator "NA"]
[PlyCount "81"]
[EventDate "2019.07.02"]
[EventCountry "CZE"]
[SourceTitle "playchess.com"]
[Source "ChessBase"]
[SourceQuality "1"]
[TimeControl "5400+30"]

1. Nf3 {[%emt 0:00:00]} d5 {[%emt 0:00:00]} 2. c4 {[%emt 0:00:00]} e6 {[%emt 0:00:00]} 3. g3 {[%emt 0:00:00]} Nf6 {[%emt 0:00:07]} 4. Bg2 {[%emt 0:00:05]} Be7 {[%emt 0:00:17]} 5. b3 {[%emt 0:00:05]} c5 {[%emt 0:01:55]} 6. cxd5 {[%emt 0:00:21]} exd5 {[%emt 0:03:47]} 7. d4 {[%emt 0:00:58]} Nc6 {[%emt 0:13:40]} 8. O-O {[%emt 0:00:29]} Bf5 {[%emt 0:01:14]} 9. Nc3 {[%emt 0:07:33]} Ne4 {[%emt 0:07:44]} 10. Bb2 {[%emt 0:07:42]} Bf6 {[%emt 0:06:32]} 11. e3 {[%emt 0:00:39]} O-O {[%emt 0:05:29]} 12. Ne2 {[%emt 0:04:18]} Re8 {[%emt 0:06:24]} 13. Rc1 {[%emt 0:06:48]} b5 {[%emt 0:14:05]} 14. h3 {[%emt 0:17:53]} c4 {[%emt 0:07:12]} 15. g4 {[%emt 0:00:47]} Be6 {[%emt 0:03:12]} 16. Ne5 {[%emt 0:02:29]} Bxe5 {[%emt 0:02:26]} 17. dxe5 {[%emt 0:00:11]} Nc5 {[%emt 0:00:40]} 18. Nf4 {[%emt 0:02:52]} Nb4 {[%emt 0:03:45]} 19. bxc4 {[%emt 0:04:42]} dxc4 {[%emt 0:03:39]} 20. Bxa8 {[%emt 0:01:07]} Qxa8 {[%emt 0:00:43]} 21. Bd4 {[%emt 0:01:49]} Ncd3 {[%emt 0:01:19]} 22. Nxd3 {[%emt 0:00:50]} Nxd3 {[%emt 0:00:11]} 23. Rc3 {[%emt 0:02:49]} b4 {[%emt 0:03:28]} 24. Rc2 {[%emt 0:03:09]} a5 {[%emt 0:00:58]} 25. f3 {[%emt 0:02:35]} Qa6 {[%emt 0:01:15]} 26. f4 {[%emt 0:00:50]} Bd5 {[%emt 0:00:32]} 27. Rd2 {[%emt 0:01:20]} Be4 {[%emt 0:00:30]} 28. f5 {[%emt 0:02:05]} c3 {[%emt 0:02:05]} 29. Rh2 {[%emt 0:00:38]} f6 {[%emt 0:01:10]} 30. Qb3+ {[%emt 0:02:34]} Kf8 {[%emt 0:01:03]} 31. Rd1 {[%emt 0:02:59]} Qb5 {[%emt 0:03:10]} 32. Rxd3 {[%emt 0:07:33]} Bxd3 {[%emt 0:00:43]} 33. exf6 {[%emt 0:01:15]} gxf6 {[%emt 0:00:57]} 34. Bxf6 {[%emt 0:00:20]} c2 {[%emt 0:00:57]} 35. Rxc2 {[%emt 0:01:57]} Bxc2 {[%emt 0:00:10]} 36. Qxc2 {[%emt 0:00:19]} Kf7 {[%emt 0:04:07]} 37. Bd4 {[%emt 0:00:14]} Qd5 {[%emt 0:01:08]} 38. f6 {[%emt 0:02:21]} Qd6 {[%emt 0:01:53]} 39. Qxh7+ {[%emt 0:00:34]} Ke6 {[%emt 0:00:01]} 40. Qf5+ {[%emt 0:01:28]} Kf7 {[%emt 0:00:20]} 41. Qh5+ {[%emt 0:00:34]} 1-0

[Event "Ceske Budejovice Open-A 2019"]
[Site "Ceske Budejovice"]
[Date "2019.07.05"]
[Round "7.13"]
[White "Nagy, Ladislav"]
[Black "Malinovsky, Petr"]
[Result "1-0"]
[ECO "B25"]
[WhiteElo "2061"]
[BlackElo "2058"]
[Annotator "NA"]
[PlyCount "101"]
[EventDate "2019.07.02"]
[EventCountry "CZE"]
[SourceTitle "playchess.com"]
[Source "ChessBase"]
[SourceQuality "1"]
[TimeControl "5400+30"]

1. e4 {[%emt 0:00:52]} c5 {[%emt 0:00:00]} 2. Nc3 {[%emt 0:00:49]} g6 {[%emt 0:00:00]} 3. g3 {[%emt 0:00:20]} Nc6 {[%emt 0:00:09]} 4. Bg2 {[%emt 0:00:46]} Bg7 {[%emt 0:00:11]} 5. d3 {[%emt 0:00:58]} d6 {[%emt 0:00:13]} 6. f4 {[%emt 0:00:57]} f5 {[%emt 0:00:13]} 7. Nf3 {[%emt 0:02:00]} Nf6 {[%emt 0:00:16]} 8. O-O {[%emt 0:01:28]} O-O {[%emt 0:00:08]} 9. Kh1 {[%emt 0:01:58]} Kh8 {[%emt 0:00:07]} 10. Be3 {[%emt 0:04:55]} Be6 {[%emt 0:00:33]} 11. Bg1 {[%emt 0:01:40]} Bg8 {[%emt 0:00:19]} 12. Qd2 {[%emt 0:10:43]} Qd7 {[%emt 0:01:08]} 13. Rfe1 {[%emt 0:11:16]} Rae8 {[%emt 0:04:47]} 14. exf5 {[%emt 0:07:26]} gxf5 {[%emt 0:00:58]} 15. Rad1 {[%emt 0:02:35]} b6 {[%emt 0:05:49]} 16. d4 {[%emt 0:07:34]} Ne4 {[%emt 0:09:05]} 17. Nxe4 {[%emt 0:02:58]} fxe4 {[%emt 0:00:47]} 18. Rxe4 {[%emt 0:02:28]} Bd5 {[%emt 0:03:15]} 19. Ree1 {[%emt 0:01:54]} Bxf3 {[%emt 0:01:02]} 20. Bxf3 {[%emt 0:00:20]} Nxd4 {[%emt 0:02:56]} 21. Bxd4 {[%emt 0:03:51]} Bxd4 {[%emt 0:00:47]} 22. c3 {[%emt 0:01:10]} Bf6 {[%emt 0:11:15]} 23. Qg2 {[%emt 0:01:42]} Qf5 {[%emt 0:08:19]} 24. Be4 {[%emt 0:05:24]} Qg4 {[%emt 0:04:29]} 25. Bc6 {[%emt 0:03:07]} Rd8 {[%emt 0:02:37]} 26. Bf3 {[%emt 0:02:08]} Qg7 {[%emt 0:04:58]} 27. Re6 {[%emt 0:02:58]} b5 {[%emt 0:01:00]} 28. Rd2 {[%emt 0:03:15]} b4 {[%emt 0:01:31]} 29. c4 {[%emt 0:00:48]} a5 {[%emt 0:00:56]} 30. b3 {[%emt 0:02:28]} Rd7 {[%emt 0:01:56]} 31. Bd1 {[%emt 0:00:54]} Bd4 {[%emt 0:14:41]} 32. Rde2 {[%emt 0:03:18]} Rf6 {[%emt 0:07:52]} 33. Bc2 {[%emt 0:02:02]} Rxe6 {[%emt 0:00:56]} 34. Rxe6 {[%emt 0:00:11]} Rd8 {[%emt 0:01:42]} 35. Qh3 {[%emt 0:01:09]} Bf6 {[%emt 0:01:22]} 36. Qh5 {[%emt 0:03:17]} Rf8 {[%emt 0:02:44]} 37. Kg2 {[%emt 0:02:45]} Qf7 {[%emt 0:02:22]} 38. Qxf7 {[%emt 0:02:20]} Rxf7 {[%emt 0:02:25]} 39. Kf3 {[%emt 0:00:54]} Kg7 {[%emt 0:00:34]} 40. g4 {[%emt 0:01:11]} Be5 {[%emt 0:01:18]} 41. Bf5 {[%emt 0:00:33]} Bf6 {[%emt 0:00:00]} 42. Ke4 {[%emt 0:00:00]} Rf8 {[%emt 0:00:00]} 43. g5 {[%emt 0:00:00]} Bd4 {[%emt 0:00:00]} 44. Rxe7+ {[%emt 0:00:00]} Kh8 {[%emt 0:00:00]} 45. Rxh7+ {[%emt 0:00:00]} Kg8 {[%emt 0:00:00]} 46. Re7 {[%emt 0:00:00]} Ra8 {[%emt 0:00:00]} 47. Bd7 {[%emt 0:00:00]} Ra6 {[%emt 0:00:00]} 48. f5 {[%emt 0:00:00]} Kf8 {[%emt 0:00:00]} 49. f6 {[%emt 0:00:00]} Ra7 {[%emt 0:00:00]} 50. Kf5 {[%emt 0:00:00]} a4 {[%emt 0:00:00]} 51. Re8+ {[%emt 0:00:00]} 1-0

[Event "Ceske Budejovice Open-A 2019"]
[Site "Ceske Budejovice"]
[Date "2019.07.05"]
[Round "7.14"]
[White "Rolinek, Dominik"]
[Black "Tajovsky, Matej"]
[Result "1-0"]
[ECO "A45"]
[WhiteElo "2004"]
[BlackElo "1779"]
[Annotator "NA"]
[PlyCount "53"]
[EventDate "2019.07.02"]
[EventCountry "CZE"]
[SourceTitle "playchess.com"]
[Source "ChessBase"]
[SourceQuality "1"]
[TimeControl "5400+30"]

1. d4 Nf6 2. Bf4 d5 3. e3 e6 4. Nf3 Bd6 5. Bg3 O-O 6. Bd3 Nbd7 7. Nbd2 b6 8. Ne5 Bb7 9. c3 Ne4 10. Qc2 f5 11. Ndf3 c5 12. Nxd7 Qxd7 13. Bxd6 Qxd6 14. Ne5 Rac8 15. f3 Ng5 16. O-O Rf6 17. Rae1 Rh6 18. Qa4 Bc6 19. Qxa7 Be8 20. f4 Ne4 21. Bxe4 fxe4 22. f5 cxd4 23. exd4 Rc7 24. Qb8 Qe7 25. Ng4 Rh5 26. f6 Qd7 27. f7+ 1-0

[Event "Ceske Budejovice Open-A 2019"]
[Site "Ceske Budejovice"]
[Date "2019.07.05"]
[Round "7.15"]
[White "Brom, Jiri"]
[Black "Zacek, Petr"]
[Result "1-0"]
[ECO "D04"]
[WhiteElo "2018"]
[BlackElo "1883"]
[Annotator "NA"]
[PlyCount "81"]
[EventDate "2019.07.02"]
[EventCountry "CZE"]
[SourceTitle "playchess.com"]
[Source "ChessBase"]
[SourceQuality "1"]
[TimeControl "5400+30"]

1. d4 {[%emt 0:01:58]} d5 {[%emt 0:00:00]} 2. Nf3 {[%emt 0:00:12]} Nf6 {[%emt 0:00:00]} 3. e3 {[%emt 0:00:16]} Bf5 {[%emt 0:00:06]} 4. c4 {[%emt 0:00:30]} e6 {[%emt 0:00:17]} 5. Qb3 {[%emt 0:01:10]} b6 {[%emt 0:00:43]} 6. Nc3 {[%emt 0:02:22]} h6 {[%emt 0:00:20]} 7. cxd5 {[%emt 0:02:39]} exd5 {[%emt 0:00:19]} 8. Be2 {[%emt 0:01:13]} Be7 {[%emt 0:00:25]} 9. O-O {[%emt 0:03:09]} O-O {[%emt 0:00:32]} 10. Bd2 {[%emt 0:01:28]} c6 {[%emt 0:01:42]} 11. Rfc1 {[%emt 0:01:01]} Bc8 {[%emt 0:10:29]} 12. h3 {[%emt 0:10:47]} Bb7 {[%emt 0:00:15]} 13. a4 {[%emt 0:05:00]} c5 {[%emt 0:05:37]} 14. dxc5 {[%emt 0:00:54]} Bxc5 {[%emt 0:00:12]} 15. Nb5 {[%emt 0:04:44]} Nc6 {[%emt 0:02:12]} 16. Bc3 {[%emt 0:02:48]} Ne4 {[%emt 0:04:43]} 17. Rd1 {[%emt 0:02:42]} Qe7 {[%emt 0:02:34]} 18. Be1 {[%emt 0:07:30]} Rad8 {[%emt 0:10:27]} 19. Rac1 {[%emt 0:08:56]} Kh8 {[%emt 0:07:07]} 20. Nbd4 {[%emt 0:08:04]} Nxd4 {[%emt 0:05:33]} 21. Nxd4 {[%emt 0:01:32]} f5 {[%emt 0:03:25]} 22. Bf1 {[%emt 0:05:34]} f4 {[%emt 0:05:10]} 23. exf4 {[%emt 0:07:11]} Rxf4 {[%emt 0:00:48]} 24. f3 {[%emt 0:00:36]} Qf6 {[%emt 0:05:14]} 25. Rxc5 {[%emt 0:01:03]} Nxc5 {[%emt 0:08:07]} 26. Qe3 {[%emt 0:10:06]} Qf7 {[%emt 0:00:59]} 27. Bg3 {[%emt 0:01:47]} Rf6 {[%emt 0:00:35]} 28. Re1 {[%emt 0:01:25]} Ba6 {[%emt 0:09:52]} 29. Bxa6 {[%emt 0:02:12]} Nxa6 {[%emt 0:00:09]} 30. Bh4 {[%emt 0:01:10]} g5 {[%emt 0:00:56]} 31. Bg3 {[%emt 0:00:07]} Kg8 {[%emt 0:01:42]} 32. h4 {[%emt 0:01:00]} Rg6 {[%emt 0:04:04]} 33. h5 {[%emt 0:02:05]} Rg7 {[%emt 0:00:27]} 34. Be5 {[%emt 0:00:26]} Rh7 {[%emt 0:00:16]} 35. g4 {[%emt 0:00:04]} Nc5 {[%emt 0:01:04]} 36. Nf5 {[%emt 0:00:20]} Nd7 {[%emt 0:01:27]} 37. Nxh6+ {[%emt 0:00:18]} Rxh6 {[%emt 0:00:40]} 38. Qxg5+ {[%emt 0:00:03]} Kh7 {[%emt 0:00:31]} 39. Qxd8 {[%emt 0:00:19]} Nxe5 {[%emt 0:01:44]} 40. Rxe5 {[%emt 0:00:10]} Re6 {[%emt 0:00:09]} 41. Qxd5 {[%emt 0:02:15]} 1-0

[Event "Ceske Budejovice Open-A 2019"]
[Site "Ceske Budejovice"]
[Date "2019.07.05"]
[Round "7.16"]
[White "Barak, David"]
[Black "Rolinkova, Lucie"]
[Result "1-0"]
[ECO "B01"]
[WhiteElo "2015"]
[BlackElo "1703"]
[Annotator "NA"]
[PlyCount "45"]
[EventDate "2019.07.02"]
[EventCountry "CZE"]
[SourceTitle "playchess.com"]
[Source "ChessBase"]
[SourceQuality "1"]
[TimeControl "5400+30"]

1. e4 {[%emt 0:00:00]} d5 {[%emt 0:00:00]} 2. exd5 {[%emt 0:00:00]} Qxd5 {[%emt 0:00:05]} 3. Nc3 {[%emt 0:00:00]} Qa5 {[%emt 0:00:40]} 4. d4 {[%emt 0:00:00]} Nf6 {[%emt 0:01:02]} 5. Nf3 {[%emt 0:02:06]} Bf5 {[%emt 0:00:22]} 6. Bd2 {[%emt 0:01:11]} c6 {[%emt 0:00:36]} 7. Ne4 {[%emt 0:01:21]} Qb6 {[%emt 0:02:20]} 8. Nxf6+ {[%emt 0:04:57]} gxf6 {[%emt 0:06:00]} 9. b4 {[%emt 0:24:18]} e6 {[%emt 0:05:24]} 10. Rb1 {[%emt 0:07:26]} Nd7 {[%emt 0:03:53]} 11. Be2 {[%emt 0:05:45]} e5 {[%emt 0:09:14]} 12. O-O {[%emt 0:10:40]} e4 {[%emt 0:15:57]} 13. Nh4 {[%emt 0:06:00]} Be6 {[%emt 0:05:57]} 14. Bf4 Bxa2 {[%emt 0:18:20]} 15. Rb2 {[%emt 0:07:22]} Be6 {[%emt 0:00:38]} 16. c4 {[%emt 0:01:51]} Nb8 {[%emt 0:02:24]} 17. d5 {[%emt 0:06:17]} cxd5 {[%emt 0:00:46]} 18. cxd5 {[%emt 0:00:14]} Bd7 {[%emt 0:00:38]} 19. Qc2 {[%emt 0:00:46]} f5 {[%emt 0:01:23]} 20. Qc3 {[%emt 0:00:40]} Rg8 {[%emt 0:03:52]} 21. Bxb8 {[%emt 0:06:42]} Bg7 {[%emt 0:08:43]} 22. Be5 {[%emt 0:03:42]} Rc8 {[%emt 0:00:12]} 23. Qg3 {[%emt 0:00:32]} 1-0

[Event "Ceske Budejovice Open-A 2019"]
[Site "Ceske Budejovice"]
[Date "2019.07.05"]
[Round "7.17"]
[White "Kanka, Matej"]
[Black "Steiner, Juraj"]
[Result "0-1"]
[ECO "A34"]
[WhiteElo "1858"]
[BlackElo "1896"]
[Annotator "NA"]
[PlyCount "70"]
[EventDate "2019.07.02"]
[EventCountry "CZE"]
[SourceTitle "playchess.com"]
[Source "ChessBase"]
[SourceQuality "1"]
[TimeControl "5400+30"]

1. c4 {[%emt 0:00:00]} c5 {[%emt 0:00:05]} 2. Nc3 {[%emt 0:00:04]} Nf6 {[%emt 0:00:20]} 3. g3 {[%emt 0:00:41]} e6 {[%emt 0:01:12]} 4. Bg2 {[%emt 0:00:55]} d5 {[%emt 0:00:36]} 5. d3 {[%emt 0:01:39]} d4 {[%emt 0:01:15]} 6. Ne4 {[%emt 0:00:29]} Be7 {[%emt 0:04:42]} 7. e3 {[%emt 0:08:17]} Nc6 {[%emt 0:04:08]} 8. Ne2 {[%emt 0:00:37]} e5 {[%emt 0:11:15]} 9. Nxf6+ {[%emt 0:02:04]} Bxf6 {[%emt 0:00:34]} 10. e4 {[%emt 0:00:07]} h5 {[%emt 0:06:11]} 11. h4 {[%emt 0:04:29]} Bg4 {[%emt 0:03:42]} 12. f3 {[%emt 0:00:49]} Bd7 {[%emt 0:00:13]} 13. a3 {[%emt 0:02:03]} a6 {[%emt 0:02:48]} 14. Bd2 {[%emt 0:00:42]} g5 {[%emt 0:01:19]} 15. hxg5 {[%emt 0:00:24]} Bxg5 {[%emt 0:00:13]} 16. b4 {[%emt 0:00:43]} Qe7 {[%emt 0:05:51]} 17. Bxg5 {[%emt 0:05:10]} Qxg5 {[%emt 0:00:34]} 18. bxc5 {[%emt 0:00:09]} h4 {[%emt 0:08:27]} 19. Qd2 {[%emt 0:03:28]} Qg7 {[%emt 0:03:20]} 20. g4 {[%emt 0:04:51]} O-O-O {[%emt 0:06:50]} 21. Rb1 {[%emt 0:00:45]} Rdg8 {[%emt 0:00:15]} 22. Qb2 {[%emt 0:01:59]} Nd8 {[%emt 0:00:44]} 23. Bh3 {[%emt 0:02:59]} Qg5 {[%emt 0:01:39]} 24. Rf1 {[%emt 0:05:54]} Qe3 {[%emt 0:04:23]} 25. Qb3 {[%emt 0:03:38]} Bc6 {[%emt 0:04:34]} 26. Kd1 {[%emt 0:02:06]} Ne6 {[%emt 0:02:00]} 27. g5 {[%emt 0:02:04]} Rxg5 {[%emt 0:00:32]} 28. Qb6 {[%emt 0:03:42]} Rg3 {[%emt 0:06:04]} 29. Qa7 {[%emt 0:02:04]} Qxd3+ {[%emt 0:03:26]} 30. Ke1 {[%emt 0:01:44]} Qxb1+ {[%emt 0:00:14]} 31. Kf2 {[%emt 0:00:05]} Qb2 {[%emt 0:05:11]} 32. Bxe6+ {[%emt 0:01:19]} fxe6 {[%emt 0:01:24]} 33. Qa8+ {[%emt 0:00:13]} Kc7 {[%emt 0:00:22]} 34. Qxh8 {[%emt 0:00:53]} d3 {[%emt 0:01:05]} 35. Qxh4 {[%emt 0:02:59]} dxe2 {[%emt 0:01:38]} 0-1

[Event "Ceske Budejovice Open-A 2019"]
[Site "Ceske Budejovice"]
[Date "2019.07.05"]
[Round "7.18"]
[White "Chval, Zdenek"]
[Black "Puncochar, Jiri"]
[Result "1/2-1/2"]
[ECO "C99"]
[WhiteElo "2145"]
[BlackElo "2014"]
[Annotator "NA"]
[PlyCount "53"]
[EventDate "2019.07.02"]
[EventCountry "CZE"]
[SourceTitle "playchess.com"]
[Source "ChessBase"]
[SourceQuality "1"]
[TimeControl "5400+30"]

1. e4 {[%emt 0:00:00]} e5 {[%emt 0:00:00]} 2. Nf3 {[%emt 0:00:00]} Nc6 {[%emt 0:00:00]} 3. Bb5 {[%emt 0:00:00]} a6 {[%emt 0:00:00]} 4. Ba4 {[%emt 0:00:00]} Nf6 {[%emt 0:00:00]} 5. O-O {[%emt 0:00:00]} Be7 {[%emt 0:00:10]} 6. Re1 {[%emt 0:00:00]} b5 {[%emt 0:00:18]} 7. Bb3 {[%emt 0:00:00]} O-O {[%emt 0:00:29]} 8. h3 {[%emt 0:00:55]} d6 {[%emt 0:00:43]} 9. c3 {[%emt 0:00:11]} Na5 {[%emt 0:01:14]} 10. Bc2 {[%emt 0:00:32]} c5 {[%emt 0:00:06]} 11. d4 {[%emt 0:00:19]} Qc7 {[%emt 0:00:29]} 12. Nbd2 {[%emt 0:01:09]} cxd4 {[%emt 0:03:14]} 13. cxd4 {[%emt 0:00:23]} Bd7 {[%emt 0:00:46]} 14. Nf1 {[%emt 0:11:42]} Rfc8 {[%emt 0:07:45]} 15. Bb1 {[%emt 0:05:34]} h6 {[%emt 0:18:07]} 16. Ng3 {[%emt 0:12:17]} Bf8 {[%emt 0:03:01]} 17. Nh4 {[%emt 0:27:00]} Nc6 {[%emt 0:02:28]} 18. Nhf5 {[%emt 0:04:51]} Nxd4 {[%emt 0:06:08]} 19. Nxd4 {[%emt 0:00:19]} exd4 {[%emt 0:00:07]} 20. Qxd4 {[%emt 0:00:13]} Ne8 {[%emt 0:14:37]} 21. Nf5 {[%emt 0:12:00]} Bxf5 {[%emt 0:01:54]} 22. exf5 {[%emt 0:00:20]} Be7 {[%emt 0:00:14]} 23. Bf4 {[%emt 0:09:28]} Bf6 {[%emt 0:00:56]} 24. Qd2 {[%emt 0:00:42]} Qc5 {[%emt 0:01:10]} 25. Be4 {[%emt 0:02:18]} Rab8 {[%emt 0:01:20]} 26. Rac1 {[%emt 0:01:08]} Qb6 {[%emt 0:00:32]} 27. Be3 {[%emt 0:01:11]} 1/2-1/2

[Event "Ceske Budejovice Open-A 2019"]
[Site "Ceske Budejovice"]
[Date "2019.07.05"]
[Round "7.19"]
[White "Stehlik, Jiri"]
[Black "Brhlik, Antonin"]
[Result "1-0"]
[ECO "A15"]
[WhiteElo "1930"]
[BlackElo "1639"]
[Annotator "NA"]
[PlyCount "151"]
[EventDate "2019.07.02"]
[EventCountry "CZE"]
[SourceTitle "playchess.com"]
[Source "ChessBase"]
[SourceQuality "1"]
[TimeControl "5400+30"]

1. c4 Nf6 2. Nf3 e6 3. g3 b6 4. Bg2 Bb7 5. O-O Be7 6. d4 d5 7. Ne5 O-O 8. Nc3 c5 9. Be3 Nc6 10. Nxc6 Bxc6 11. cxd5 exd5 12. h3 Rc8 13. Rc1 c4 14. Bd2 b5 15. a3 a5 16. e3 b4 17. axb4 axb4 18. Ne2 Qd7 19. Ra1 Ra8 20. f3 Rxa1 21. Qxa1 Ra8 22. Qb1 Qb7 23. Re1 Re8 24. h4 Bd6 25. Bh3 Qb8 26. Kf2 Qc7 27. Qc2 Bd7 28. Bxd7 Qxd7 29. Kg2 g6 30. Ra1 Qb7 31. Qa4 Qb6 32. Kf2 Kg7 33. Qa7 Qxa7 34. Rxa7 h5 35. Rb7 b3 36. Ra7 Rb8 37. Ra5 Rd8 38. Ra4 Bf8 39. Nc3 Kg8 40. Ne2 Kg7 41. Nf4 Rd7 42. Bc3 Kg8 43. Ra8 Kg7 44. Ra6 Rb7 45. Ra4 Bd6 46. Nh3 Kf8 47. Ng1 Ke7 48. Ne2 Kd7 49. Ke1 Kc6 50. Kd2 Kd7 51. Kd1 Kc7 52. Be1 Kd7 53. Bd2 Rc7 54. Kc1 Ke8 55. Ra6 Kd7 56. Be1 Rb7 57. Nc3 Be7 58. e4 dxe4 59. fxe4 Ng4 60. Nd5 Bd8 61. Ra4 f5 62. e5 Kc6 63. Nf4 Kb5 64. Rb4+ Ka6 65. Rxc4 Rc7 66. Rxc7 Bxc7 67. Nxg6 Ne3 68. Nf4 Bb6 69. Bc3 Kb7 70. Nxh5 Nd5 71. Nf4 Ne7 72. h5 Ng8 73. Nd5 Bd8 74. Bd2 Kc6 75. Nc3 Ne7 76. Bg5 {Kd5} 1-0